fUSD/lending_fUSD_20240222
["ID","MTS","AMOUNT","RATE_DAILY","PERIOD"]
[314901407,1708625542185,-500.0,0.00034109,4]
[314901408,1708625542195,-568.65,0.00034109,4]
[314901409,1708625542205,-500.00000001,0.00034109,4]
[314901410,1708625542214,-500.0,0.00034109,4]
[314901411,1708625542225,-1313.43,0.00034109,4]
[314901412,1708625542234,-3828.9,0.00034109,4]
[314901413,1708625542460,-1312.47,0.00034109,4]
[314901414,1708625542470,-500.0,0.00034109,4]
[314901415,1708625542480,-637.56,0.00034109,4]
[314901416,1708625542490,-500.0,0.00034109,4]
[314901417,1708625542499,-771.01,0.00034109,4]
[314901418,1708625542509,-670.32,0.00034109,4]
[314901419,1708625542518,-905.48,0.00034109,4]
[314901420,1708625542527,-587.38,0.00034109,4]
[314901421,1708625542536,-500.0,0.00034109,4]
[314901422,1708625542546,-500.0,0.00034109,4]
[314901423,1708625542555,-500.0,0.00034109,4]
[314901424,1708625542564,-500.0,0.00034109,4]
[314901425,1708625542573,-500.0,0.00034109,4]
[314901426,1708625542582,-500.0,0.00034109,4]
[314901427,1708625542591,-589.9763988,0.00034109,4]
[314901428,1708625542601,-500.0,0.00034109,4]
[314901429,1708625542610,-1115.25,0.00034109,4]
[314901430,1708625542620,-500.0,0.00034109,4]
[314901431,1708625542630,-617.27,0.00034109,4]
[314901432,1708625542640,-500.0,0.00034109,4]
[314901433,1708625542649,-1239.94,0.00034109,4]
[314901434,1708625542658,-920.63,0.00034109,4]
[314901435,1708625542667,-1030.29,0.00034109,4]
[314901436,1708625542677,-500.0,0.00034109,4]
[314901437,1708625542686,-500.0,0.00034109,4]
[314901438,1708625542695,-799.98,0.00034109,4]
[314901439,1708625542704,-728.76,0.00034109,4]
[314901440,1708625542714,-500.0,0.00034109,4]
[314901441,1708625542724,-741.55,0.00034109,4]
[314901442,1708625542733,-617.56,0.00034109,4]
[314901443,1708625542742,-664.22,0.00034109,4]
[314901444,1708625542752,-582.0,0.00034109,4]
[314901445,1708625542761,-500.0,0.00034109,4]
[314901446,1708625542770,-541.78,0.00034109,4]
[314901447,1708625542779,-764.35,0.00034109,4]
[314901448,1708625542789,-500.0,0.00034109,4]
[314901449,1708625542798,-1242.24,0.00034109,4]
[314901450,1708625542807,-1041.1,0.00034109,4]
[314901451,1708625542817,-500.0,0.00034109,4]
[314901452,1708625542826,-1494.6,0.00034109,4]
[314901453,1708625542835,-500.0,0.00034109,4]
[314901454,1708625542845,-500.0,0.00034109,4]
[314901455,1708625542854,-983.44,0.00034109,4]
[314901456,1708625542863,-524.12743381,0.00034109,4]
[314901457,1708625542873,-871.52,0.00034109,4]
[314901458,1708625542883,-500.0,0.00034109,4]
[314901459,1708625542895,-937.84,0.00034109,4]
[314901460,1708625542905,-500.0,0.00034109,4]
[314901461,1708625542914,-940.94,0.00034109,4]
[314901462,1708625542923,-500.0,0.00034109,4]
[314901463,1708625542933,-500.0,0.00034109,4]
[314901464,1708625542942,-196.83453873,0.00034109,4]
[314901465,1708625542952,-900.68,0.00034109,4]
[314901466,1708625542961,-1267.73,0.00034109,4]
[314901467,1708625542971,-988.42,0.00034109,4]
[314901468,1708625542981,-598.66,0.00034109,4]
[314901469,1708625542990,-1407.88,0.00034109,4]
[314901470,1708625542999,-500.0,0.00034109,4]
[314901471,1708625543008,-500.0,0.00034109,4]
[314901472,1708625543018,-1015.51,0.00034109,4]
[314901473,1708625543027,-500.0,0.00034109,4]
[314901474,1708625543036,-500.0,0.00034109,4]
[314901475,1708625543045,-824.67,0.00034109,4]
[314901476,1708625543055,-1044.83,0.00034109,4]
[314901477,1708625543064,-625.15,0.00034109,4]
[314901478,1708625543073,-848.25,0.00034109,4]
[314901479,1708625543083,-715.27,0.00034109,4]
[314901480,1708625543092,-500.0,0.00034109,4]
[314901481,1708625543102,-500.0,0.00034109,4]
[314901482,1708625543112,-500.0,0.00034109,4]
[314901483,1708625543121,-979.83,0.00034109,4]
[314901484,1708625543131,-500.0,0.00034109,4]
[314901485,1708625543141,-1292.8,0.00034109,4]
[314901486,1708625543151,-579.59,0.00034109,4]
[314901487,1708625543161,-651.21,0.00034109,4]
[314901488,1708625543170,-709.91,0.00034109,4]
[314901489,1708625543179,-1259.45,0.00034109,4]
[314901490,1708625543188,-500.0,0.00034109,4]
[314901491,1708625543197,-695.7,0.00034109,4]
[314901492,1708625543208,-972.69,0.00034109,4]
[314901493,1708625543218,-500.0,0.00034109,4]
[314901494,1708625543227,-500.0,0.00034109,4]
[314901495,1708625543237,-1106.66,0.00034109,4]
[314901496,1708625543246,-1263.76,0.00034109,4]
[314901497,1708625543256,-500.0,0.00034109,4]
[314901498,1708625543265,-1595.37,0.00034109,4]
[314901499,1708625543274,-508.72888336,0.00034109,4]
[314901500,1708625543284,-535.25,0.00034109,4]
[314901501,1708625543294,-1321.09,0.00034109,4]
[314901502,1708625543304,-500.0,0.00034109,4]
[314901503,1708625543313,-841.52,0.00034109,4]
[314901504,1708625543323,-593.4,0.00034109,4]
[314901505,1708625543333,-1083.33,0.00034109,4]
[314901506,1708625543343,-500.0,0.00034109,4]
[314901507,1708625543352,-1312.31,0.00034109,4]
[314901508,1708625543362,-1322.97,0.00034109,4]
[314901509,1708625543372,-6861.46,0.00034109,4]
[314901510,1708625543381,-7508.74,0.00034109,4]
[314901511,1708625543391,-500.0,0.00034109,4]
[314901512,1708625543401,-2188.57,0.00034109,4]
[314901513,1708625543412,-500.0,0.00034109,4]
[314901514,1708625543422,-640.5,0.00034109,4]
[314901515,1708625543432,-1556.17,0.00034109,2]
[314901516,1708625543442,-931.24,0.00034109,4]
[314901517,1708625543452,-1521.19,0.00034109,4]
[314901518,1708625543462,-1367.32,0.00034109,4]
[314901519,1708625543472,-579.67,0.00034109,4]
[314901520,1708625543481,-500.0,0.00034109,4]
[314901521,1708625543490,-500.0,0.00034109,4]
[314901522,1708625543500,-500.0,0.00034109,4]
[314901523,1708625543509,-3289.02,0.00034109,4]
[314901524,1708625543518,-1435.75,0.00034109,4]
[314901525,1708625543528,-670.88,0.00034109,4]
[314901526,1708625543539,-7764.94,0.00034109,4]
[314901527,1708625543549,-1463.74,0.00034109,4]
[314901528,1708625543558,-500.0,0.00034109,4]
[314901529,1708625543568,-500.0,0.00034109,4]
[314901530,1708625543577,-500.0,0.00034109,4]
[314901531,1708625543586,-500.0,0.00034109,4]
[314901532,1708625543596,-2618.09,0.00034109,4]
[314901533,1708625543605,-905.05,0.00034109,4]
[314901534,1708625543615,-1754.26,0.00034109,4]
[314901535,1708625543624,-571.38,0.00034109,4]
[314901536,1708625543634,-1224.57,0.00034109,4]
[314901537,1708625543643,-1412.23,0.00034109,4]
[314901538,1708625543653,-1295.05,0.00034109,4]
[314901539,1708625543662,-2025.9,0.00034109,4]
[314901540,1708625543672,-363.71330657,0.00034109,4]
[314901541,1708625543681,-734.04,0.00034109,4]
[314901542,1708625543690,-16810.08,0.00034109,4]
[314901543,1708625543699,-3953.01,0.00034109,4]
[314901544,1708625543708,-500.0,0.00034109,4]
[314901545,1708625543718,-1357.88,0.00034109,4]
[314901546,1708625543727,-500.0,0.00034109,4]
[314901547,1708625543737,-523.91,0.00034109,4]
[314901548,1708625543746,-500.0,0.00034109,4]
[314901549,1708625543755,-500.0,0.00034109,4]
[314901550,1708625543765,-500.0,0.00034109,4]
[314901551,1708625543774,-1306.91,0.00034109,4]
[314901552,1708625543783,-1319.7,0.00034109,4]
[314901553,1708625543792,-2921.05,0.00034109,4]
[314901554,1708625543801,-4012.02,0.00034109,4]
[314901555,1708625543810,-3520.12,0.00034109,4]
[314901556,1708625543819,-1203.69,0.00034109,4]
[314901557,1708625543829,-7422.46,0.00034109,4]
[314901558,1708625543839,-2325.63,0.00034109,4]
[314901559,1708625543848,-595.22,0.00034109,4]
[314901560,1708625543858,-500.0,0.00034109,4]
[314901561,1708625543867,-500.0,0.00034109,4]
[314901562,1708625543876,-578.71,0.00034109,4]
[314901563,1708625543888,-896.84,0.00034109,4]
[314901564,1708625543898,-500.0,0.00034109,4]
[314901565,1708625543908,-500.0,0.00034109,4]
[314901566,1708625543917,-579.72,0.00034109,4]
[314901567,1708625543926,-802.17,0.00034109,4]
[314901568,1708625543936,-999.86,0.00034109,4]
[314901569,1708625543945,-2641.23,0.00034109,4]
[314901570,1708625543954,-3363.68,0.00034109,4]
[314901571,1708625543963,-2799.21,0.00034109,4]
[314901572,1708625543974,-500.0,0.00034109,4]
[314901573,1708625543984,-500.0,0.00034109,4]
[314901574,1708625543993,-500.0,0.00034109,4]
[314901575,1708625544003,-522.87,0.00034109,4]
[314901576,1708625544012,-879.41,0.00034109,4]
[314901577,1708625544021,-922.6,0.00034109,4]
[314901578,1708625544031,-7827.29,0.00034109,4]
[314901579,1708625544041,-1225.83,0.00034109,4]
[314901580,1708625544051,-708.41,0.00034109,4]
[314901581,1708625544061,-4523.83,0.00034109,4]
[314901582,1708625544070,-1375.3,0.00034109,4]
[314901583,1708625544080,-4862.62,0.00034109,4]
[314901584,1708625544089,-735.21,0.00034109,4]
[314901585,1708625544099,-757.98,0.00034109,4]
[314901586,1708625544108,-346.61,0.00034109,4]
[314901587,1708625544118,-500.0,0.00034109,4]
[314901588,1708625544128,-3270.53,0.00034109,4]
[314901589,1708625544138,-876.68,0.00034109,4]
[314901590,1708625544148,-2130.22,0.00034109,4]
[314901591,1708625544157,-3006.31,0.00034109,4]
[314901592,1708625544166,-5087.25,0.00034109,4]
[314901593,1708625544175,-869.35,0.00034109,4]
[314901594,1708625544185,-500.0,0.00034109,4]
[314901595,1708625544194,-500.0,0.00034109,4]
[314901596,1708625544203,-1701.19,0.00034109,4]
[314901597,1708625544213,-1542.31,0.00034109,4]
[314901598,1708625544224,-1144.38,0.00034109,4]
[314901599,1708625544234,-10191.48,0.00034109,4]
[314901600,1708625544243,-14297.7,0.00034109,4]
[314901601,1708625544252,-870.84,0.00034109,4]
[314901602,1708625544261,-1739.37,0.00034109,4]
[314901603,1708625544270,-500.0,0.00034109,4]
[314901604,1708625544279,-1219.49,0.00034109,4]
[314901605,1708625544289,-500.0,0.00034109,4]
[314901606,1708625544299,-500.0,0.00034109,4]
[314901607,1708625544309,-662.36,0.00034109,4]
[314901608,1708625544318,-5320.7,0.00034109,4]
[314901609,1708625544328,-1389.1,0.00034109,4]
[314901610,1708625544337,-1178.0,0.00034109,4]
[314901611,1708625544346,-500.0,0.00034109,4]
[314901612,1708625544356,-4535.27,0.00034109,4]
[314901613,1708625544365,-1510.56,0.00034109,4]
[314901614,1708625544375,-574.08,0.00034109,4]
[314901615,1708625544384,-913.43,0.00034109,4]
[314901616,1708625544394,-957.57,0.00034109,4]
[314901617,1708625544404,-1132.71,0.00034109,4]
[314901618,1708625544414,-1840.14,0.00034109,4]
[314901619,1708625544424,-500.0,0.00034109,4]
[314901620,1708625544433,-500.0,0.00034109,4]
[314901621,1708625544442,-1105.16,0.00034109,4]
[314901622,1708625544452,-8688.16,0.00034109,4]
[314901623,1708625544462,-856.33,0.00034109,4]
[314901624,1708625544472,-1035.38,0.00034109,4]
[314901625,1708625544482,-500.0,0.00034109,4]
[314901626,1708625544491,-597.54,0.00034109,4]
[314901627,1708625544501,-1031.07,0.00034109,4]
[314901628,1708625544511,-500.0,0.00034109,4]
[314901629,1708625544521,-607.73,0.00034109,4]
[314901630,1708625544530,-4152.62,0.00034109,4]
[314901631,1708625544540,-4573.59,0.00034109,4]
[314901632,1708625544550,-5220.29,0.00034109,4]
[314901633,1708625544559,-1750.52,0.00034109,4]
[314901634,1708625544568,-500.0,0.00034109,4]
[314901635,1708625544577,-740.42,0.00034109,4]
[314901636,1708625544587,-543.8,0.00034109,4]
[314901637,1708625544596,-579.71,0.00034109,4]
[314901638,1708625544606,-27929.76,0.00034109,4]
[314901639,1708625544615,-500.0,0.00034109,4]
[314901640,1708625544624,-769.4,0.00034109,4]
[314901641,1708625544634,-500.0,0.00034109,4]
[314901642,1708625544643,-500.0,0.00034109,4]
[314901643,1708625544652,-3104.43,0.00034109,4]
[314901644,1708625544662,-2557.13,0.00034109,4]
[314901645,1708625544671,-763.62,0.00034109,4]
[314901646,1708625544680,-31733.49,0.00034109,4]
[314901647,1708625544690,-1402.56,0.00034109,4]
[314901648,1708625544699,-635.4,0.00034109,4]
[314901649,1708625544708,-2617.91,0.00034109,4]
[314901650,1708625544719,-500.0,0.00034109,4]
[314901651,1708625544728,-10076.31,0.00034109,4]
[314901652,1708625544738,-719.16,0.00034109,4]
[314901653,1708625544747,-549.71,0.00034109,4]
[314901654,1708625544756,-815.24,0.00034109,4]
[314901655,1708625544765,-540.22,0.00034109,4]
[314901656,1708625544774,-10365.29,0.00034109,4]
[314901657,1708625544783,-1908.5,0.00034109,4]
[314901658,1708625544793,-500.0,0.00034109,4]
[314901659,1708625544802,-1930.81,0.00034109,4]
[314901660,1708625544900,-4645.8,0.00034109,4]
[314901661,1708625544910,-1831.86,0.00034109,4]
[314901662,1708625544920,-1019.93,0.00034109,4]
[314901663,1708625544930,-500.0,0.00034109,4]
[314901664,1708625544939,-831.39,0.00034109,4]
[314901665,1708625544949,-1113.04,0.00034109,4]
[314901666,1708625544962,-2272.34,0.00034109,4]
[314901667,1708625544973,-703.63,0.00034109,4]
[314901668,1708625544983,-19048.88,0.00034109,4]
[314901669,1708625544993,-899.16,0.00034109,4]
[314901670,1708625545003,-612.06,0.00034109,4]
[314901671,1708625545011,-1790.32,0.00034109,4]
[314901672,1708625545021,-3342.93,0.00034109,4]
[314901673,1708625545030,-500.0,0.00034109,4]
[314901674,1708625545040,-1083.4,0.00034109,4]
[314901675,1708625545050,-6652.12,0.00034109,4]
[314901676,1708625545060,-3448.92,0.00034109,4]
[314901677,1708625545069,-500.0,0.00034109,4]
[314901678,1708625545079,-500.0,0.00034109,4]
[314901679,1708625545088,-566.02,0.00034109,4]
[314901680,1708625545097,-2397.11,0.00034109,4]
[314901681,1708625545107,-588.46,0.00034109,4]
[314901682,1708625545117,-668.81,0.00034109,4]
[314901683,1708625545126,-504.65,0.00034109,4]
[314901684,1708625545135,-890.14,0.00034109,4]
[314901685,1708625545145,-1569.54,0.00034109,4]
[314901686,1708625545155,-2839.46,0.00034109,4]
[314901687,1708625545164,-500.0,0.00034109,4]
[314901688,1708625545173,-1599.27,0.00034109,4]
[314901689,1708625545183,-12262.15,0.00034109,4]
[314901690,1708625545193,-500.0,0.00034109,4]
[314901691,1708625545202,-603.26,0.00034109,4]
[314901692,1708625545212,-684.48,0.00034109,4]
[314901693,1708625545222,-4428.36,0.00034109,4]
[314901694,1708625545231,-500.0,0.00034109,4]
[314901695,1708625545241,-2710.14,0.00034109,4]
[314901696,1708625545250,-11511.86,0.00034109,4]
[314901697,1708625545259,-13857.62,0.00034109,4]
[314901698,1708625545268,-1092.92,0.00034109,4]
[314901699,1708625545278,-500.0,0.00034109,4]
[314901700,1708625545287,-1594.69,0.00034109,4]
[314901701,1708625545296,-500.0,0.00034109,4]
[314901702,1708625545305,-935.58,0.00034109,4]
[314901703,1708625545314,-543.61,0.00034109,4]
[314901704,1708625545323,-787.78,0.00034109,4]
[314901705,1708625545333,-500.0,0.00034109,4]
[314901706,1708625545342,-500.0,0.00034109,4]
[314901707,1708625545351,-12927.16,0.00034109,4]
[314901708,1708625545360,-952.32,0.00034109,4]
[314901709,1708625545370,-500.0,0.00034109,4]
[314901710,1708625545379,-15657.06,0.00034109,4]
[314901711,1708625545388,-1397.23,0.00034109,4]
[314901712,1708625545397,-734.09,0.00034109,4]
[314901713,1708625545409,-500.0,0.00034109,4]
[314901714,1708625545418,-500.0,0.00034109,4]
[314901715,1708625545428,-638.64,0.00034109,4]
[314901716,1708625545438,-500.0,0.00034109,4]
[314901717,1708625545447,-1622.99,0.00034109,4]
[314901718,1708625545457,-500.0,0.00034109,4]
[314901719,1708625545466,-2266.68,0.00034109,4]
[314901720,1708625545477,-2464.49,0.00034109,4]
[314901721,1708625545486,-1572.14,0.00034109,4]
[314901722,1708625545495,-500.0,0.00034109,4]
[314901723,1708625545505,-1658.88,0.00034109,4]
[314901724,1708625545514,-1524.56,0.00034109,4]
[314901725,1708625545524,-802.87,0.00034109,4]
[314901726,1708625545534,-631.35,0.00034109,4]
[314901727,1708625545543,-500.0,0.00034109,4]
[314901728,1708625545553,-500.0,0.00034109,4]
[314901729,1708625545563,-795.52,0.00034109,4]
[314901730,1708625545572,-6459.32,0.00034109,4]
[314901731,1708625545581,-3708.97,0.00034109,4]
[314901732,1708625545591,-1063.1,0.00034109,4]
[314901733,1708625545601,-833.35,0.00034109,4]
[314901734,1708625545610,-8548.5,0.00034109,4]
[314901735,1708625545620,-619.16,0.00034109,4]
[314901736,1708625545629,-8589.16,0.00034109,4]
[314901737,1708625545638,-559.93,0.00034109,4]
[314901738,1708625545648,-725.96,0.00034109,4]
[314901739,1708625545657,-621.36998101,0.00034109,4]
[314901740,1708625545667,-500.0,0.00034109,4]
[314901741,1708625545676,-885.04,0.00034109,4]
[314901742,1708625545686,-695.88,0.00034109,4]
[314901743,1708625545695,-1152.72,0.00034109,4]
[314901744,1708625545705,-1529.13,0.00034109,4]
[314901745,1708625545714,-3657.93,0.00034109,4]
[314901746,1708625545725,-1521.37,0.00034109,4]
[314901747,1708625545734,-500.0,0.00034109,4]
[314901748,1708625545744,-649.89,0.00034109,4]
[314901749,1708625545754,-1012.78,0.00034109,4]
[314901750,1708625545763,-500.0,0.00034109,4]
[314901751,1708625545772,-500.0,0.00034109,4]
[314901752,1708625545782,-982.4,0.00034109,4]
[314901753,1708625545791,-1281.51,0.00034109,4]
[314901754,1708625545801,-548.38,0.00034109,4]
[314901755,1708625545811,-757.3,0.00034109,4]
[314901756,1708625545821,-753.97,0.00034109,4]
[314901757,1708625545830,-2156.76,0.00034109,4]
[314901758,1708625545839,-2549.51,0.00034109,4]
[314901759,1708625545849,-2213.41,0.00034109,4]
[314901760,1708625545858,-500.0,0.00034109,4]
[314901761,1708625545868,-4381.7,0.00034109,4]
[314901762,1708625545878,-5006.44,0.00034109,4]
[314901763,1708625545892,-500.0,0.00034109,4]
[314901764,1708625545902,-500.0,0.00034109,4]
[314901765,1708625545911,-1083.67,0.00034109,4]
[314901766,1708625545920,-2631.91,0.00034109,4]
[314901767,1708625545930,-384.13605132,0.00034109,4]
[314901768,1708625545939,-928.82,0.00034109,4]
[314901769,1708625545949,-1050.11,0.00034109,4]
[314901770,1708625545959,-988.3,0.00034109,4]
[314901771,1708625545970,-553.85,0.00034109,4]
[314901772,1708625545980,-1569.8,0.00034109,4]
[314901773,1708625545990,-1347.04,0.00034109,4]
[314901774,1708625545999,-1930.76,0.00034109,4]
[314901775,1708625546009,-1578.95,0.00034109,4]
[314901776,1708625546019,-654.06,0.00034109,4]
[314901777,1708625546028,-1152.52,0.00034109,4]
[314901778,1708625546038,-1562.64,0.00034109,4]
[314901779,1708625546047,-13046.67,0.00034109,4]
[314901780,1708625546057,-554.48,0.00034109,4]
[314901781,1708625546067,-500.0,0.00034109,4]
[314901782,1708625546078,-5718.46,0.00034109,4]
[314901783,1708625546088,-585.24,0.00034109,4]
[314901784,1708625546097,-4320.81,0.00034109,4]
[314901785,1708625546107,-1143.61,0.00034109,4]
[314901786,1708625546116,-3703.9,0.00034109,4]
[314901787,1708625546125,-500.0,0.00034109,4]
[314901788,1708625546135,-845.41,0.00034109,4]
[314901789,1708625546144,-500.0,0.00034109,4]
[314901790,1708625546153,-1239.69,0.00034109,4]
[314901791,1708625546162,-1082.3,0.00034109,4]
[314901792,1708625546172,-842.27,0.00034109,4]
[314901793,1708625546181,-968.09,0.00034109,4]
[314901794,1708625546192,-2562.83,0.00034109,4]
[314901795,1708625546202,-382.32,0.00034109,2]
[314901796,1708625546211,-2763.17,0.00034109,4]
[314901797,1708625546222,-1672.02,0.00034109,4]
[314901798,1708625546231,-500.0,0.00034109,4]
[314901799,1708625546241,-850.13,0.00034109,4]
[314901800,1708625546250,-668.88,0.00034109,4]
[314901801,1708625546260,-1634.02,0.00034109,4]
[314901802,1708625546269,-500.0,0.00034109,4]
[314901803,1708625546278,-3311.96,0.00034109,4]
[314901804,1708625546288,-1279.14,0.00034109,4]
[314901805,1708625546300,-930.33,0.00034109,4]
[314901806,1708625546311,-2625.59,0.00034109,4]
[314901807,1708625546321,-619.14,0.00034109,4]
[314901808,1708625546330,-1635.09,0.00034109,4]
[314901809,1708625546340,-2609.74,0.00034109,4]
[314901810,1708625546350,-3610.42,0.00034109,4]
[314901811,1708625546359,-967.22,0.00034109,4]
[314901812,1708625546369,-923.8,0.00034109,4]
[314901813,1708625546378,-1343.66,0.00034109,4]
[314901814,1708625546387,-1380.71,0.00034109,4]
[314901815,1708625546397,-1594.46,0.00034109,4]
[314901816,1708625546408,-1079.87,0.00034109,4]
[314901817,1708625546417,-8671.59,0.00034109,4]
[314901818,1708625546428,-1060.0,0.000342,7]
[314901819,1708625546437,-5847.2078791,0.00034223,2]
[314901820,1708625546447,-168308.38524897,0.00034243,2]
[314901821,1708625546456,-500.0,0.00034246,4]
[314901822,1708625546465,-500.0,0.00034246,4]
[314901823,1708625546477,-500.0,0.00034246,4]
[314901824,1708625546486,-500.0,0.00034246,4]
[314901825,1708625546495,-500.0,0.00034246,4]
[314901826,1708625546505,-500.0,0.00034246,4]
[314901827,1708625546515,-500.0,0.00034246,4]
[314901828,1708625546524,-500.0,0.00034246,4]
[314901829,1708625546534,-500.0,0.00034246,4]
[314901830,1708625546543,-500.0,0.00034246,4]
[314901831,1708625546553,-500.0,0.00034246,4]
[314901832,1708625546562,-500.0,0.00034246,4]
[314901833,1708625546571,-500.0,0.00034246,2]
[314901834,1708625546581,-514.99,0.00034246,4]
[314901835,1708625546601,-500.0,0.00034246,4]
[314901836,1708625546610,-555.79,0.00034246,4]
[314901837,1708625546619,-500.0,0.00034246,4]
[314901838,1708625546629,-500.0,0.00034246,4]
[314901839,1708625546638,-641.75,0.00034246,4]
[314901840,1708625546648,-500.0,0.00034246,4]
[314901841,1708625546657,-750.74,0.00034246,4]
[314901842,1708625546667,-500.0,0.00034246,4]
[314901843,1708625546676,-500.0,0.00034246,4]
[314901844,1708625546685,-500.0,0.00034246,4]
[314901845,1708625546694,-500.0,0.00034246,4]
[314901846,1708625546704,-542.31,0.00034246,4]
[314901847,1708625546713,-500.0,0.00034246,4]
[314901848,1708625546722,-621.21,0.00034246,4]
[314901849,1708625546732,-500.0,0.00034246,4]
[314901850,1708625546741,-500.0,0.00034246,4]
[314901851,1708625546750,-551.07,0.00034246,4]
[314901852,1708625546760,-744.09,0.00034246,4]
[314901853,1708625546769,-500.0,0.00034246,4]
[314901854,1708625546778,-500.0,0.00034246,4]
[314901855,1708625546788,-500.0,0.00034246,4]
[314901856,1708625546797,-573.53,0.00034246,4]
[314901857,1708625546806,-500.0,0.00034246,4]
[314901858,1708625546815,-500.0,0.00034246,4]
[314901859,1708625546824,-426.33945765,0.00034246,4]
[314901860,1708625546834,-500.0,0.00034246,4]
[314901861,1708625546843,-254.75885026,0.00034246,4]
[314901862,1708625546853,-219.15146192,0.00034246,4]
[314901863,1708625546862,-500.0,0.00034246,4]
[314901864,1708625546872,-500.0,0.00034246,4]
[314901865,1708625546882,-500.0,0.00034246,4]
[314901866,1708625546894,-500.0,0.00034246,4]
[314901867,1708625546903,-524.07,0.00034246,4]
[314901868,1708625546912,-291.40895209,0.00034246,4]
[314901869,1708625546921,-951.85,0.00034246,4]
[314901870,1708625546932,-500.0,0.00034246,4]
[314901871,1708625546942,-926.28,0.00034246,4]
[314901872,1708625546951,-529.22,0.00034246,4]
[314901873,1708625546961,-500.0,0.00034246,4]
[314901874,1708625546971,-744.11,0.00034246,4]
[314901875,1708625546981,-500.0,0.00034246,4]
[314901876,1708625546990,-500.0,0.00034246,4]
[314901877,1708625546999,-1143.73,0.00034246,4]
[314901878,1708625547009,-500.0,0.00034246,4]
[314901879,1708625547019,-500.0,0.00034246,4]
[314901880,1708625547028,-600.02814574,0.00034246,4]
[314901881,1708625547037,-779.36,0.00034246,4]
[314901882,1708625547047,-635.41,0.00034246,4]
[314901883,1708625547056,-555.19,0.00034246,4]
[314901884,1708625547066,-462.72043184,0.00034246,4]
[314901885,1708625547075,-500.0,0.00034246,4]
[314901886,1708625547085,-500.0,0.00034246,4]
[314901887,1708625547094,-822.26,0.00034246,4]
[314901888,1708625547103,-769.66,0.00034246,4]
[314901889,1708625547114,-500.0,0.00034246,4]
[314901890,1708625547123,-500.0,0.00034246,4]
[314901891,1708625547132,-889.62,0.00034246,4]
[314901892,1708625547141,-634.08,0.00034246,4]
[314901893,1708625547150,-500.0,0.00034246,4]
[314901894,1708625547160,-567.01,0.00034246,4]
[314901895,1708625547169,-721.11,0.00034246,4]
[314901896,1708625547178,-653.98,0.00034246,4]
[314901897,1708625547188,-659.59,0.00034246,4]
[314901898,1708625547197,-951.61,0.00034246,4]
[314901899,1708625547207,-627.93,0.00034246,4]
[314901900,1708625547216,-677.11,0.00034246,4]
[314901901,1708625547226,-668.92,0.00034246,4]
[314901902,1708625547235,-746.18,0.00034246,4]
[314901903,1708625547245,-655.97,0.00034246,4]
[314901904,1708625547254,-500.0,0.00034246,4]
[314901905,1708625547264,-944.62,0.00034246,4]
[314901906,1708625547273,-1016.3,0.00034246,4]